[Event "Titled Tuesday Blitz April 4 Early 2023"]
[White "Costachi, Mihnea"]
[Black "Itgelt, Khuyagtsogt"]
[WhiteFideId "1217518"]
[BlackFideId "4902912"]
[WhiteElo "2456"]
[BlackElo "2227"]
[Result "0-1"]
[Round "10"]
[TimeControl "180+2"]
[Date "2023.04.04"]
[WhiteClock "0:00:27"]
[BlackClock "0:00:54"]

1. d4 {[%clk 0:03:00]}  Nf6 {[%clk 0:02:59]} 2. c4 {[%clk 0:03:01]}  g6 {[%clk 0:02:59]} 3. Nc3 {[%clk 0:03:01]}  d5 {[%clk 0:03:00]} 4. Nf3 {[%clk 0:03:01]}  Bg7 {[%clk 0:02:59]} 5. h4 {[%clk 0:03:02]}  h5 {[%clk 0:02:57]} 6. Bf4 {[%clk 0:03:01]}  O-O {[%clk 0:02:53]} 7. e3 {[%clk 0:03:02]}  c5 {[%clk 0:02:52]} 8. dxc5 {[%clk 0:03:00]}  Ne4 {[%clk 0:02:50]} 9. Nxe4 {[%clk 0:02:48]}  dxe4 {[%clk 0:02:51]} 10. Nd2 {[%clk 0:02:48]}  Bxb2 {[%clk 0:02:35]} 11. Rb1 {[%clk 0:02:48]}  Bc3 {[%clk 0:02:35]} 12. Qc2 {[%clk 0:02:49]}  Qa5 {[%clk 0:02:32]} 13. Rb3 {[%clk 0:02:48]}  Bg7 {[%clk 0:02:16]} 14. Be2 {[%clk 0:02:06]}  Rd8 {[%clk 0:02:14]} 15. Rb5 {[%clk 0:02:06]}  Qc3 {[%clk 0:02:07]} 16. Qd1 {[%clk 0:01:33]}  Na6 {[%clk 0:02:02]} 17. Rb3 {[%clk 0:01:26]}  Qa5 {[%clk 0:02:01]} 18. Rb5 {[%clk 0:01:26]}  Qc3 {[%clk 0:01:59]} 19. Rb3 {[%clk 0:01:26]}  Qa5 {[%clk 0:02:00]} 20. Rb5 {[%clk 0:01:27]}  Qxa2 {[%clk 0:01:56]} 21. Qc1 {[%clk 0:01:21]}  Bd7 {[%clk 0:01:50]} 22. Rxb7 {[%clk 0:01:17]}  Nxc5 {[%clk 0:01:49]} 23. Rb1 {[%clk 0:00:55]}  Bg4 {[%clk 0:01:39]} 24. f3 {[%clk 0:00:52]}  exf3 {[%clk 0:01:39]} 25. gxf3 {[%clk 0:00:53]}  Rxd2 {[%clk 0:01:29]} 26. Qxd2 {[%clk 0:00:28]}  Qxb1+ {[%clk 0:01:29]} 27. Qd1 {[%clk 0:00:29]}  Qxd1+ {[%clk 0:01:23]} 28. Kxd1 {[%clk 0:00:30]}  Bf5 {[%clk 0:01:19]} 29. e4 {[%clk 0:00:30]}  Be6 {[%clk 0:01:18]} 30. Kc2 {[%clk 0:00:30]}  a5 {[%clk 0:01:17]} 31. Be3 {[%clk 0:00:30]}  Na6 {[%clk 0:01:13]} 32. Kb3 {[%clk 0:00:29]}  Rb8+ {[%clk 0:01:09]} 33. Ka4 {[%clk 0:00:29]}  Bc3 {[%clk 0:01:10]} 34. Rc1 {[%clk 0:00:24]}  Bd7+ {[%clk 0:01:09]} 35. Ka3 {[%clk 0:00:24]}  Bb2+ {[%clk 0:01:09]} 36. Ka2 {[%clk 0:00:25]}  Bxc1 {[%clk 0:01:08]} 37. Bxc1 {[%clk 0:00:26]}  Be6 {[%clk 0:00:57]} 38. Bf4 {[%clk 0:00:26]}  Rb4 {[%clk 0:00:55]} 39. Ka3 {[%clk 0:00:26]}  Nc5 {[%clk 0:00:53]} 40. Be3 {[%clk 0:00:26]}  Rb3+ {[%clk 0:00:53]} 41. Ka2 {[%clk 0:00:27]}  Rxe3 {[%clk 0:00:54]} 0-1


[Site "https://www.chess.com"]

[Event "Titled Tuesday Blitz April 4 Early 2023"]
[White "Timofeev, Artyom"]
[Black "Manukyan, Artyom"]
[WhiteFideId "4140419"]
[BlackFideId "13305786"]
[WhiteElo "2586"]
[BlackElo "2078"]
[Result "1-0"]
[Round "10"]
[TimeControl "180+2"]
[Date "2023.04.04"]
[WhiteClock "0:01:01"]
[BlackClock "0:00:11"]

1. c4 {[%clk 0:03:00]}  e6 {[%clk 0:03:00]} 2. Nc3 {[%clk 0:02:59]}  d5 {[%clk 0:03:01]} 3. d4 {[%clk 0:02:58]}  Nf6 {[%clk 0:03:01]} 4. Bg5 {[%clk 0:02:57]}  c5 {[%clk 0:03:00]} 5. e3 {[%clk 0:02:57]}  Nc6 {[%clk 0:02:58]} 6. cxd5 {[%clk 0:02:54]}  exd5 {[%clk 0:02:56]} 7. Nf3 {[%clk 0:02:53]}  cxd4 {[%clk 0:02:55]} 8. Nxd4 {[%clk 0:02:52]}  Nxd4 {[%clk 0:02:53]} 9. Qxd4 {[%clk 0:02:51]}  Be7 {[%clk 0:02:51]} 10. Bb5+ {[%clk 0:02:49]}  Bd7 {[%clk 0:02:50]} 11. Bxd7+ {[%clk 0:02:46]}  Qxd7 {[%clk 0:02:50]} 12. O-O {[%clk 0:02:44]}  O-O {[%clk 0:02:49]} 13. Bxf6 {[%clk 0:02:35]}  Bxf6 {[%clk 0:02:48]} 14. Qxd5 {[%clk 0:02:35]}  Qxd5 {[%clk 0:02:33]} 15. Nxd5 {[%clk 0:02:34]}  Bxb2 {[%clk 0:02:34]} 16. Rab1 {[%clk 0:02:34]}  Be5 {[%clk 0:02:29]} 17. Rxb7 {[%clk 0:02:33]}  Rfb8 {[%clk 0:02:29]} 18. Rfb1 {[%clk 0:02:24]}  Rxb7 {[%clk 0:02:25]} 19. Rxb7 {[%clk 0:02:24]}  Kf8 {[%clk 0:02:26]} 20. f4 {[%clk 0:02:18]}  Bd6 {[%clk 0:02:23]} 21. Kf2 {[%clk 0:02:17]}  Bc5 {[%clk 0:02:20]} 22. Kf3 {[%clk 0:02:12]}  Rd8 {[%clk 0:02:18]} 23. e4 {[%clk 0:02:12]}  h5 {[%clk 0:02:15]} 24. a4 {[%clk 0:02:04]}  g6 {[%clk 0:02:08]} 25. a5 {[%clk 0:02:03]}  Kg7 {[%clk 0:02:03]} 26. h3 {[%clk 0:01:59]}  h4 {[%clk 0:02:01]} 27. Kg4 {[%clk 0:01:36]}  Bf2 {[%clk 0:02:00]} 28. f5 {[%clk 0:01:32]}  gxf5+ {[%clk 0:01:56]} 29. Kxf5 {[%clk 0:01:31]}  Rd6 {[%clk 0:01:50]} 30. Nf4 {[%clk 0:01:25]}  Rf6+ {[%clk 0:01:45]} 31. Kg4 {[%clk 0:01:23]}  Ra6 {[%clk 0:01:37]} 32. e5 {[%clk 0:01:23]}  Bg3 {[%clk 0:01:26]} 33. e6 {[%clk 0:01:15]}  Bxf4 {[%clk 0:01:12]} 34. Rxf7+ {[%clk 0:01:14]}  Kg6 {[%clk 0:01:05]} 35. Rxf4 {[%clk 0:01:14]}  Rxe6 {[%clk 0:00:44]} 36. Kxh4 {[%clk 0:01:14]}  Re2 {[%clk 0:00:39]} 37. g4 {[%clk 0:01:12]}  Re5 {[%clk 0:00:34]} 38. Rf5 {[%clk 0:01:05]}  Re3 {[%clk 0:00:19]} 39. Rc5 {[%clk 0:01:03]}  Ra3 {[%clk 0:00:19]} 40. Rc6+ {[%clk 0:01:02]}  Kf7 {[%clk 0:00:16]} 41. Ra6 {[%clk 0:01:02]}  Kg7 {[%clk 0:00:13]} 42. Rxa7+ {[%clk 0:01:02]}  Kg6 {[%clk 0:00:14]} 43. Ra6+ {[%clk 0:01:02]}  Kh7 {[%clk 0:00:14]} 44. g5 {[%clk 0:01:02]}  Ra4+ {[%clk 0:00:12]} 45. Kh5 {[%clk 0:01:02]}  Kg7 {[%clk 0:00:12]} 46. Ra7+ {[%clk 0:01:01]}  Kg8 {[%clk 0:00:11]} 47. Kg6 {[%clk 0:01:01]} 1-0


[Site "https://www.chess.com"]

[Event "Titled Tuesday Blitz April 4 Early 2023"]
[White "Danielyan, Vahe"]
[Black "Maksimovic, Bojan"]
[WhiteFideId "13304828"]
[BlackFideId "14408120"]
[WhiteElo "2423"]
[BlackElo "2468"]
[Result "0-1"]
[Round "10"]
[TimeControl "180+2"]
[Date "2023.04.04"]
[WhiteClock "0:00:19"]
[BlackClock "0:00:42"]

1. d4 {[%clk 0:03:00]}  Nf6 {[%clk 0:02:59]} 2. c4 {[%clk 0:03:01]}  g6 {[%clk 0:02:59]} 3. Nc3 {[%clk 0:03:01]}  Bg7 {[%clk 0:03:00]} 4. Nf3 {[%clk 0:02:58]}  O-O {[%clk 0:02:59]} 5. g3 {[%clk 0:02:58]}  d6 {[%clk 0:02:58]} 6. Bg2 {[%clk 0:02:58]}  Nc6 {[%clk 0:02:58]} 7. d5 {[%clk 0:02:58]}  Na5 {[%clk 0:02:58]} 8. b3 {[%clk 0:02:58]}  c5 {[%clk 0:02:58]} 9. Bb2 {[%clk 0:02:55]}  a6 {[%clk 0:02:58]} 10. O-O {[%clk 0:02:54]}  Rb8 {[%clk 0:02:58]} 11. Qc2 {[%clk 0:02:54]}  b5 {[%clk 0:02:56]} 12. Nd2 {[%clk 0:02:54]}  e5 {[%clk 0:02:41]} 13. e3 {[%clk 0:02:37]}  Ne8 {[%clk 0:02:24]} 14. f4 {[%clk 0:02:33]}  f5 {[%clk 0:02:23]} 15. Nd1 {[%clk 0:02:25]}  e4 {[%clk 0:02:20]} 16. Bxg7 {[%clk 0:02:24]}  Nxg7 {[%clk 0:02:21]} 17. Nf2 {[%clk 0:02:16]}  Qf6 {[%clk 0:02:13]} 18. Rab1 {[%clk 0:02:09]}  Bd7 {[%clk 0:02:13]} 19. g4 {[%clk 0:02:06]}  fxg4 {[%clk 0:01:37]} 20. Nfxe4 {[%clk 0:01:56]}  Qe7 {[%clk 0:01:37]} 21. Rbe1 {[%clk 0:01:44]}  Nf5 {[%clk 0:01:35]} 22. Qc3 {[%clk 0:01:33]}  Nb7 {[%clk 0:01:32]} 23. Ng5 {[%clk 0:01:31]}  h6 {[%clk 0:01:25]} 24. Ne6 {[%clk 0:01:30]}  Bxe6 {[%clk 0:01:25]} 25. dxe6 {[%clk 0:01:31]}  Nd8 {[%clk 0:01:25]} 26. e4 {[%clk 0:01:20]}  Nh4 {[%clk 0:01:17]} 27. f5 {[%clk 0:01:18]}  Nc6 {[%clk 0:01:13]} 28. Qg3 {[%clk 0:01:13]}  Ne5 {[%clk 0:01:09]} 29. cxb5 {[%clk 0:00:58]}  axb5 {[%clk 0:01:08]} 30. Nb1 {[%clk 0:00:51]}  gxf5 {[%clk 0:00:56]} 31. exf5 {[%clk 0:00:36]}  Nxf5 {[%clk 0:00:57]} 32. Qf4 {[%clk 0:00:24]}  Qxe6 {[%clk 0:00:55]} 33. Nc3 {[%clk 0:00:24]}  Qg6 {[%clk 0:00:41]} 34. Be4 {[%clk 0:00:22]}  Nf3+ {[%clk 0:00:42]} 35. Rxf3 {[%clk 0:00:19]}  gxf3+ {[%clk 0:00:42]} 36. Kf2 {[%clk 0:00:19]}  Qg2# {[%clk 0:00:42]} 0-1


[Site "https://www.chess.com"]

[Event "Titled Tuesday Blitz April 4 Early 2023"]
[White "Urazayev, Arystanbek"]
[Black "Fishchuk, Vladyslav"]
[WhiteFideId "13709810"]
[BlackFideId "34122117"]
[WhiteElo "2449"]
[BlackElo "2082"]
[Result "0-1"]
[Round "10"]
[TimeControl "180+2"]
[Date "2023.04.04"]
[WhiteClock "0:00:15"]
[BlackClock "0:01:24"]

1. e4 {[%clk 0:03:00]}  c5 {[%clk 0:02:59]} 2. Nf3 {[%clk 0:03:00]}  Nf6 {[%clk 0:03:00]} 3. Nc3 {[%clk 0:02:58]}  d5 {[%clk 0:03:00]} 4. exd5 {[%clk 0:02:59]}  Nxd5 {[%clk 0:03:01]} 5. Bb5+ {[%clk 0:03:00]}  Bd7 {[%clk 0:03:01]} 6. Ne5 {[%clk 0:03:01]}  Bxb5 {[%clk 0:02:59]} 7. Qf3 {[%clk 0:03:01]}  f6 {[%clk 0:02:59]} 8. Nxb5 {[%clk 0:02:58]}  Na6 {[%clk 0:02:56]} 9. Nc4 {[%clk 0:02:39]}  Qd7 {[%clk 0:02:43]} 10. Nbd6+ {[%clk 0:02:30]}  exd6 {[%clk 0:02:40]} 11. Qxd5 {[%clk 0:02:31]}  Nb4 {[%clk 0:02:40]} 12. Qe4+ {[%clk 0:02:31]}  Kf7 {[%clk 0:02:38]} 13. Ne3 {[%clk 0:02:24]}  Re8 {[%clk 0:02:35]} 14. Qc4+ {[%clk 0:02:10]}  d5 {[%clk 0:02:33]} 15. Qb3 {[%clk 0:02:03]}  c4 {[%clk 0:02:29]} 16. Qc3 {[%clk 0:02:03]}  d4 {[%clk 0:02:24]} 17. Qxc4+ {[%clk 0:02:04]}  Kg6 {[%clk 0:02:21]} 18. O-O {[%clk 0:01:42]}  Rc8 {[%clk 0:02:15]} 19. Qe2 {[%clk 0:01:11]}  dxe3 {[%clk 0:02:14]} 20. c3 {[%clk 0:01:11]}  exf2+ {[%clk 0:02:02]} 21. Rxf2 {[%clk 0:01:12]}  Nd3 {[%clk 0:01:52]} 22. Rf3 {[%clk 0:01:12]}  Bc5+ {[%clk 0:01:49]} 23. Kf1 {[%clk 0:01:13]}  Rcd8 {[%clk 0:01:46]} 24. b4 {[%clk 0:00:48]}  Bb6 {[%clk 0:01:44]} 25. Qe4+ {[%clk 0:00:48]}  Kf7 {[%clk 0:01:36]} 26. Ba3 {[%clk 0:00:44]}  Rhe8 {[%clk 0:01:33]} 27. Qxh7 {[%clk 0:00:42]}  Qe6 {[%clk 0:01:26]} 28. Qh5+ {[%clk 0:00:16]}  Kg8 {[%clk 0:01:24]} 29. Rh3 {[%clk 0:00:16]}  Qe1+ {[%clk 0:01:24]} 30. Rxe1 {[%clk 0:00:15]}  Rxe1# {[%clk 0:01:24]} 0-1


[Site "https://www.chess.com"]

[Event "Titled Tuesday Blitz April 4 Early 2023"]
[White "Buksa, Nataliya"]
[Black "Rohith Krishna S"]
[WhiteFideId "14123622"]
[BlackFideId "46617051"]
[WhiteElo "2316"]
[BlackElo "2270"]
[Result "0-1"]
[Round "10"]
[TimeControl "180+2"]
[Date "2023.04.04"]
[WhiteClock "0:00:02"]
[BlackClock "0:00:19"]

1. d4 {[%clk 0:03:00]}  Nf6 {[%clk 0:02:57]} 2. Nc3 {[%clk 0:03:00]}  d5 {[%clk 0:02:47]} 3. Bf4 {[%clk 0:03:01]}  c6 {[%clk 0:02:46]} 4. e3 {[%clk 0:03:01]}  e6 {[%clk 0:02:46]} 5. Nf3 {[%clk 0:03:01]}  Bd6 {[%clk 0:02:46]} 6. Bd3 {[%clk 0:03:02]}  O-O {[%clk 0:02:46]} 7. Qd2 {[%clk 0:02:58]}  Bxf4 {[%clk 0:02:43]} 8. exf4 {[%clk 0:02:58]}  c5 {[%clk 0:02:43]} 9. dxc5 {[%clk 0:02:58]}  Nbd7 {[%clk 0:02:44]} 10. Na4 {[%clk 0:02:46]}  Qc7 {[%clk 0:02:36]} 11. b4 {[%clk 0:02:46]}  b6 {[%clk 0:02:32]} 12. O-O {[%clk 0:02:32]}  bxc5 {[%clk 0:02:28]} 13. bxc5 {[%clk 0:02:31]}  Bb7 {[%clk 0:02:27]} 14. Rab1 {[%clk 0:02:29]}  Bc6 {[%clk 0:02:28]} 15. Bb5 {[%clk 0:02:25]}  Ne4 {[%clk 0:02:17]} 16. Qe3 {[%clk 0:02:22]}  Rab8 {[%clk 0:02:14]} 17. Nd4 {[%clk 0:02:13]}  Bxb5 {[%clk 0:02:05]} 18. Nxb5 {[%clk 0:02:02]}  Qa5 {[%clk 0:02:01]} 19. Nbc3 {[%clk 0:01:48]}  Ndxc5 {[%clk 0:01:56]} 20. Nxc5 {[%clk 0:01:45]}  Nxc5 {[%clk 0:01:50]} 21. g3 {[%clk 0:01:28]}  Rb6 {[%clk 0:01:47]} 22. f5 {[%clk 0:01:24]}  Rfb8 {[%clk 0:01:46]} 23. Rxb6 {[%clk 0:01:17]}  axb6 {[%clk 0:01:44]} 24. Rb1 {[%clk 0:01:11]}  Rd8 {[%clk 0:01:38]} 25. fxe6 {[%clk 0:01:09]}  fxe6 {[%clk 0:01:33]} 26. Qg5 {[%clk 0:01:02]}  Rf8 {[%clk 0:01:22]} 27. Qe5 {[%clk 0:01:02]}  h6 {[%clk 0:01:13]} 28. Rb5 {[%clk 0:01:01]}  Qa7 {[%clk 0:01:09]} 29. Qd6 {[%clk 0:00:48]}  Qf7 {[%clk 0:00:56]} 30. f4 {[%clk 0:00:49]}  Qf6 {[%clk 0:00:54]} 31. Qe5 {[%clk 0:00:49]}  Qg6 {[%clk 0:00:49]} 32. Rxb6 {[%clk 0:00:40]}  Qxc2 {[%clk 0:00:47]} 33. Rc6 {[%clk 0:00:38]}  Nd3 {[%clk 0:00:42]} 34. Qxe6+ {[%clk 0:00:37]}  Kh8 {[%clk 0:00:42]} 35. Qe2 {[%clk 0:00:35]}  Qc1+ {[%clk 0:00:33]} 36. Kg2 {[%clk 0:00:30]}  Nxf4+ {[%clk 0:00:29]} 37. gxf4 {[%clk 0:00:28]}  d4 {[%clk 0:00:30]} 38. Qd1 {[%clk 0:00:10]}  Qxf4 {[%clk 0:00:28]} 39. Nd5 {[%clk 0:00:08]}  Qe4+ {[%clk 0:00:27]} 40. Kg1 {[%clk 0:00:08]}  Qxd5 {[%clk 0:00:28]} 41. Rc2 {[%clk 0:00:08]}  d3 {[%clk 0:00:27]} 42. Rd2 {[%clk 0:00:09]}  Qd4+ {[%clk 0:00:27]} 43. Kh1 {[%clk 0:00:09]}  Qe4+ {[%clk 0:00:28]} 44. Kg1 {[%clk 0:00:09]}  Qe3+ {[%clk 0:00:28]} 45. Kh1 {[%clk 0:00:09]}  Qh3 {[%clk 0:00:27]} 46. Kg1 {[%clk 0:00:09]}  Qe3+ {[%clk 0:00:23]} 47. Kh1 {[%clk 0:00:09]}  Rf3 {[%clk 0:00:24]} 48. a4 {[%clk 0:00:08]}  Qe4 {[%clk 0:00:22]} 49. Kg1 {[%clk 0:00:08]}  Qf4 {[%clk 0:00:20]} 50. a5 {[%clk 0:00:07]}  Qg4+ {[%clk 0:00:20]} 51. Kh1 {[%clk 0:00:07]}  Qf4 {[%clk 0:00:19]} 52. Kg1 {[%clk 0:00:07]}  Re3 {[%clk 0:00:19]} 53. a6 {[%clk 0:00:06]}  Qg5+ {[%clk 0:00:20]} 54. Kh1 {[%clk 0:00:06]}  Qd5+ {[%clk 0:00:19]} 55. Kg1 {[%clk 0:00:06]}  Qc5 {[%clk 0:00:19]} 56. Kh1 {[%clk 0:00:05]}  Qc6+ {[%clk 0:00:20]} 57. Kg1 {[%clk 0:00:05]}  Qxa6 {[%clk 0:00:21]} 58. Qg4 {[%clk 0:00:03]}  Qa1+ {[%clk 0:00:20]} 59. Kg2 {[%clk 0:00:03]}  Qa8+ {[%clk 0:00:19]} 60. Kg1 {[%clk 0:00:03]}  Qe8 {[%clk 0:00:20]} 61. Kf2 {[%clk 0:00:03]}  Re4 {[%clk 0:00:19]} 62. Qf3 {[%clk 0:00:02]}  Re7 {[%clk 0:00:19]} 63. Qxd3 {[%clk 0:00:02]}  Rf7+ {[%clk 0:00:19]} 64. Kg2 {[%clk 0:00:03]}  Rf8 {[%clk 0:00:18]} 65. Qd7 {[%clk 0:00:03]}  Qg6+ {[%clk 0:00:18]} 66. Kh3 {[%clk 0:00:02]}  Rf3+ {[%clk 0:00:19]} 67. Kh4 {[%clk 0:00:02]}  Qg5# {[%clk 0:00:19]} 0-1


[Site "https://www.chess.com"]

[Event "Titled Tuesday Blitz April 4 Early 2023"]
[White "Prohaszka, Peter"]
[Black "Namitbir Singh Walia"]
[WhiteFideId "726265"]
[BlackFideId "35071068"]
[WhiteElo "2626"]
[BlackElo "2239"]
[Result "1-0"]
[Round "10"]
[TimeControl "180+2"]
[Date "2023.04.04"]
[WhiteClock "0:00:06"]
[BlackClock "0:00:02"]

1. d4 {[%clk 0:02:50]}  Nf6 {[%clk 0:02:59]} 2. Bf4 {[%clk 0:02:49]}  d5 {[%clk 0:02:58]} 3. Nc3 {[%clk 0:02:48]}  Bf5 {[%clk 0:02:55]} 4. Nf3 {[%clk 0:02:45]}  e6 {[%clk 0:02:53]} 5. e3 {[%clk 0:02:44]}  c6 {[%clk 0:02:53]} 6. Ne5 {[%clk 0:02:40]}  h5 {[%clk 0:02:54]} 7. h3 {[%clk 0:02:18]}  Nbd7 {[%clk 0:02:51]} 8. Rg1 {[%clk 0:02:16]}  Nxe5 {[%clk 0:02:47]} 9. Bxe5 {[%clk 0:02:14]}  Ne4 {[%clk 0:02:42]} 10. Nxe4 {[%clk 0:02:12]}  Bxe4 {[%clk 0:02:42]} 11. c3 {[%clk 0:02:03]}  Qb6 {[%clk 0:02:40]} 12. Qb3 {[%clk 0:02:02]}  f6 {[%clk 0:02:37]} 13. Bh2 {[%clk 0:02:02]}  Be7 {[%clk 0:02:36]} 14. Be2 {[%clk 0:02:00]}  Bg6 {[%clk 0:02:31]} 15. Kd2 {[%clk 0:01:42]}  c5 {[%clk 0:02:15]} 16. Qxb6 {[%clk 0:01:26]}  axb6 {[%clk 0:02:15]} 17. Bb5+ {[%clk 0:01:19]}  Kf7 {[%clk 0:02:15]} 18. Bc7 {[%clk 0:01:15]}  Bd8 {[%clk 0:02:14]} 19. Bxd8 {[%clk 0:01:10]}  Rhxd8 {[%clk 0:02:11]} 20. a4 {[%clk 0:01:06]}  c4 {[%clk 0:02:01]} 21. Ra3 {[%clk 0:01:01]}  Rdc8 {[%clk 0:01:40]} 22. b3 {[%clk 0:00:59]}  Bd3 {[%clk 0:01:40]} 23. Rga1 {[%clk 0:00:57]}  g5 {[%clk 0:01:36]} 24. R1a2 {[%clk 0:00:45]}  Ke7 {[%clk 0:01:28]} 25. Rb2 {[%clk 0:00:42]}  Bf1 {[%clk 0:01:26]} 26. bxc4 {[%clk 0:00:42]}  dxc4 {[%clk 0:01:12]} 27. g3 {[%clk 0:00:31]}  Bxh3 {[%clk 0:01:11]} 28. Ra1 {[%clk 0:00:31]}  Bg2 {[%clk 0:01:05]} 29. Rb4 {[%clk 0:00:25]}  Bd5 {[%clk 0:01:05]} 30. e4 {[%clk 0:00:26]}  Bxe4 {[%clk 0:01:01]} 31. Bxc4 {[%clk 0:00:26]}  Rc6 {[%clk 0:00:51]} 32. Re1 {[%clk 0:00:26]}  Bf5 {[%clk 0:00:44]} 33. Bb3 {[%clk 0:00:25]}  Rac8 {[%clk 0:00:33]} 34. Re3 {[%clk 0:00:20]}  h4 {[%clk 0:00:33]} 35. gxh4 {[%clk 0:00:19]}  gxh4 {[%clk 0:00:34]} 36. Rb5 {[%clk 0:00:20]}  Kd7 {[%clk 0:00:25]} 37. Bc2 {[%clk 0:00:08]}  Bxc2 {[%clk 0:00:18]} 38. Kxc2 {[%clk 0:00:08]}  Rh8 {[%clk 0:00:18]} 39. Rh3 {[%clk 0:00:07]}  Kc7 {[%clk 0:00:16]} 40. Rb1 {[%clk 0:00:07]}  Rc4 {[%clk 0:00:16]} 41. Kb3 {[%clk 0:00:06]}  Rc6 {[%clk 0:00:16]} 42. Rbh1 {[%clk 0:00:06]}  Rd6 {[%clk 0:00:13]} 43. Rxh4 {[%clk 0:00:07]}  Rxh4 {[%clk 0:00:13]} 44. Rxh4 {[%clk 0:00:08]}  Rd5 {[%clk 0:00:14]} 45. Rh7+ {[%clk 0:00:07]}  Kc6 {[%clk 0:00:14]} 46. Re7 {[%clk 0:00:07]}  Rf5 {[%clk 0:00:12]} 47. Rxe6+ {[%clk 0:00:07]}  Kc7 {[%clk 0:00:12]} 48. Re7+ {[%clk 0:00:06]}  Kc6 {[%clk 0:00:12]} 49. Re6+ {[%clk 0:00:07]}  Kc7 {[%clk 0:00:11]} 50. Re2 {[%clk 0:00:07]}  Kc6 {[%clk 0:00:11]} 51. Kc4 {[%clk 0:00:08]}  Rf3 {[%clk 0:00:11]} 52. Re6+ {[%clk 0:00:07]}  Kc7 {[%clk 0:00:11]} 53. Re7+ {[%clk 0:00:07]}  Kc6 {[%clk 0:00:11]} 54. d5+ {[%clk 0:00:07]}  Kd6 {[%clk 0:00:11]} 55. Re6+ {[%clk 0:00:08]}  Kc7 {[%clk 0:00:11]} 56. Re2 {[%clk 0:00:06]}  Rf4+ {[%clk 0:00:11]} 57. Kb5 {[%clk 0:00:05]}  Rf3 {[%clk 0:00:07]} 58. Kb4 {[%clk 0:00:05]}  Kd7 {[%clk 0:00:04]} 59. c4 {[%clk 0:00:05]}  f5 {[%clk 0:00:03]} 60. Ra2 {[%clk 0:00:05]}  f4 {[%clk 0:00:03]} 61. a5 {[%clk 0:00:05]}  bxa5+ {[%clk 0:00:04]} 62. Kxa5 {[%clk 0:00:06]}  Rb3 {[%clk 0:00:04]} 63. Ka4 {[%clk 0:00:06]}  Rc3 {[%clk 0:00:04]} 64. Kb4 {[%clk 0:00:06]}  Rc1 {[%clk 0:00:04]} 65. Kc5 {[%clk 0:00:06]}  Rb1 {[%clk 0:00:04]} 66. Re2 {[%clk 0:00:06]}  Rb3 {[%clk 0:00:03]} 67. Re4 {[%clk 0:00:06]}  f3 {[%clk 0:00:04]} 68. Rf4 {[%clk 0:00:06]}  Kc7 {[%clk 0:00:01]} 69. Rf7+ {[%clk 0:00:07]}  Kd8 {[%clk 0:00:02]} 70. Kd6 {[%clk 0:00:07]}  Ke8 {[%clk 0:00:02]} 71. Rf4 {[%clk 0:00:06]}  Rc3 {[%clk 0:00:02]} 72. c5 {[%clk 0:00:06]}  Kd8 {[%clk 0:00:02]} 73. Rf8# {[%clk 0:00:06]} 1-0


[Site "https://www.chess.com"]

[Event "Titled Tuesday Blitz April 4 Early 2023"]
[White "Mazurkiewicz, Michal"]
[Black "Shuvalova, Polina"]
[WhiteFideId "1124943"]
[BlackFideId "24171760"]
[WhiteElo "2054"]
[BlackElo "2281"]
[Result "0-1"]
[Round "10"]
[TimeControl "180+2"]
[Date "2023.04.04"]
[WhiteClock "0:00:10"]
[BlackClock "0:00:36"]

1. e4 {[%clk 0:02:59]}  c6 {[%clk 0:02:59]} 2. d3 {[%clk 0:02:59]}  d5 {[%clk 0:02:58]} 3. Nd2 {[%clk 0:03:00]}  e5 {[%clk 0:02:57]} 4. Ngf3 {[%clk 0:03:00]}  Bd6 {[%clk 0:02:56]} 5. d4 {[%clk 0:03:00]}  exd4 {[%clk 0:02:52]} 6. exd5 {[%clk 0:03:00]}  Nf6 {[%clk 0:02:52]} 7. dxc6 {[%clk 0:03:00]}  Nxc6 {[%clk 0:02:51]} 8. Nb3 {[%clk 0:03:01]}  Bg4 {[%clk 0:02:46]} 9. Be2 {[%clk 0:03:01]}  O-O {[%clk 0:02:30]} 10. h3 {[%clk 0:02:56]}  Bxf3 {[%clk 0:02:29]} 11. Bxf3 {[%clk 0:02:56]}  Re8+ {[%clk 0:02:29]} 12. Kf1 {[%clk 0:02:40]}  Ne4 {[%clk 0:02:01]} 13. Nxd4 {[%clk 0:02:16]}  Nxf2 {[%clk 0:01:06]} 14. Nxc6 {[%clk 0:01:31]}  Nxd1 {[%clk 0:01:05]} 15. Nxd8 {[%clk 0:01:31]}  Bg3 {[%clk 0:01:04]} 16. Bd2 {[%clk 0:01:26]}  Raxd8 {[%clk 0:01:03]} 17. Ba5 {[%clk 0:00:29]}  Ne3+ {[%clk 0:00:55]} 18. Kg1 {[%clk 0:00:28]}  b6 {[%clk 0:00:51]} 19. Be1 {[%clk 0:00:27]}  Nxc2 {[%clk 0:00:46]} 20. Bxg3 {[%clk 0:00:28]}  Nxa1 {[%clk 0:00:46]} 21. Kh2 {[%clk 0:00:28]}  Nc2 {[%clk 0:00:46]} 22. Rc1 {[%clk 0:00:29]}  Nd4 {[%clk 0:00:46]} 23. Bb7 {[%clk 0:00:25]}  Ne2 {[%clk 0:00:45]} 24. Rc7 {[%clk 0:00:24]}  Nxg3 {[%clk 0:00:45]} 25. Kxg3 {[%clk 0:00:25]}  Kf8 {[%clk 0:00:45]} 26. Ba6 {[%clk 0:00:14]}  Re7 {[%clk 0:00:45]} 27. Rc2 {[%clk 0:00:15]}  g6 {[%clk 0:00:45]} 28. Bc4 {[%clk 0:00:14]}  Kg7 {[%clk 0:00:44]} 29. b3 {[%clk 0:00:13]}  h5 {[%clk 0:00:43]} 30. Rf2 {[%clk 0:00:13]}  f5 {[%clk 0:00:42]} 31. h4 {[%clk 0:00:13]}  Rd4 {[%clk 0:00:41]} 32. Kh3 {[%clk 0:00:12]}  Re3+ {[%clk 0:00:41]} 33. g3 {[%clk 0:00:12]}  f4 {[%clk 0:00:41]} 34. Rg2 {[%clk 0:00:13]}  Rxg3+ {[%clk 0:00:40]} 35. Rxg3 {[%clk 0:00:14]}  fxg3 {[%clk 0:00:40]} 36. Kxg3 {[%clk 0:00:15]}  Rg4+ {[%clk 0:00:40]} 37. Kh3 {[%clk 0:00:15]}  Kf6 {[%clk 0:00:40]} 38. Ba6 {[%clk 0:00:13]}  Rd4 {[%clk 0:00:38]} 39. Kg3 {[%clk 0:00:13]}  g5 {[%clk 0:00:37]} 40. hxg5+ {[%clk 0:00:12]}  Kxg5 {[%clk 0:00:38]} 41. Bc8 {[%clk 0:00:13]}  h4+ {[%clk 0:00:38]} 42. Kf3 {[%clk 0:00:13]}  Rd8 {[%clk 0:00:38]} 43. Bb7 {[%clk 0:00:12]}  Rd2 {[%clk 0:00:38]} 44. a4 {[%clk 0:00:12]}  h3 {[%clk 0:00:37]} 45. Ke3 {[%clk 0:00:11]}  Rb2 {[%clk 0:00:37]} 46. Bd5 {[%clk 0:00:10]}  h2 {[%clk 0:00:36]} 47. Kd4 {[%clk 0:00:10]}  Rd2+ {[%clk 0:00:36]} 0-1


[Site "https://www.chess.com"]